bitfinex/quotes_BTCUSD_20241222
["timestamp","ask_amount","ask_price","bid_price","bid_amount"]
[1734832506896,0.006,97109.0,97108.0,0.13157197]
[1734832507118,0.205949,97111.0,97108.0,0.13057197]
[1734832507320,0.002,97109.0,97108.0,0.13057197]
[1734832507515,0.007,97109.0,97108.0,0.21648322]
[1734832508340,0.002,97109.0,97108.0,0.21548322]
[1734832508559,0.205949,97111.0,97108.0,0.21548322]
[1734832508761,0.004,97109.0,97108.0,0.21548322]
[1734832509763,0.004,97109.0,97108.0,0.13358322]
[1734832509974,0.00077391,97109.0,97108.0,0.00017197]
[1734832510353,0.00177391,97109.0,97108.0,0.00017197]
[1734832510789,0.001,97109.0,97108.0,0.08508322]
[1734832510992,0.003,97109.0,97108.0,0.08508322]
[1734832511198,0.001,97109.0,97108.0,0.08508322]
[1734832511401,0.01462726,97109.0,97108.0,0.00017197]
[1734832511602,0.10216801,97109.0,97108.0,0.00117197]
[1734832511825,0.18296801,97109.0,97108.0,0.00117197]
[1734832512024,0.18396801,97109.0,97108.0,0.00117197]
[1734832512305,0.17796801,97109.0,97108.0,0.00017197]
[1734832512729,0.17996801,97109.0,97108.0,0.00017197]
[1734832513151,0.17796801,97109.0,97108.0,0.00017197]
[1734832513614,0.18196801,97109.0,97108.0,0.00017197]
[1734832513782,0.10416801,97109.0,97108.0,0.00017197]
[1734832514049,0.10916801,97109.0,97108.0,0.00117197]
[1734832516011,0.0070857,97109.0,97108.0,0.00117197]
[1734832516383,0.00785961,97109.0,97108.0,0.00117197]
[1734832516659,0.0070857,97109.0,97108.0,0.00117197]
[1734832516893,0.0070857,97109.0,97108.0,0.08608322]
[1734832517776,0.0070857,97109.0,97108.0,0.18608322]
[1734832518662,0.09201805,97119.0,97118.0,0.33051125]
[1734832518867,0.09201805,97119.0,97118.0,0.68181965]
[1734832519066,0.04201805,97119.0,97118.0,0.78181965]
[1734832519288,0.04201805,97124.0,97123.0,0.43331125]
[1734832519461,0.04201805,97124.0,97123.0,0.63461965]
[1734832520551,0.27336095,97139.0,97123.0,0.63461965]
[1734832520552,0.205844,97161.0,97127.0,0.33491125]
[1734832520761,0.205844,97161.0,97127.0,0.45921965]
[1734832520959,0.09828841,97160.0,97127.0,0.45921965]
[1734832521667,0.09828841,97150.0,97127.0,0.55130391]
[1734832522081,0.09828841,97150.0,97127.0,0.55430391]
[1734832522279,0.205875,97147.0,97127.0,0.55430391]
[1734832522487,0.205875,97147.0,97127.0,0.53130391]
[1734832522907,0.205875,97147.0,97127.0,0.43630391]
[1734832523321,0.205875,97147.0,97127.0,0.34421965]
[1734832524165,0.205875,97147.0,97127.0,0.44421965]
[1734832524380,0.30417741,97140.0,97127.0,0.09291125]
[1734832524582,0.205901,97134.0,97127.0,0.19291125]
[1734832525144,0.205901,97134.0,97127.0,0.18991125]
[1734832525366,0.205901,97134.0,97127.0,0.19091125]
[1734832525840,0.205901,97134.0,97127.0,0.18591125]
[1734832526044,0.205901,97134.0,97127.0,0.18691125]
[1734832527349,0.205901,97134.0,97127.0,0.18791125]
[1734832528510,0.205913,97129.0,97127.0,0.18791125]
[1734832528687,0.205901,97134.0,97127.0,0.18791125]
[1734832529422,0.205901,97134.0,97127.0,0.18591125]
[1734832529862,0.0020857,97128.0,97127.0,0.18591125]
[1734832530507,0.0020857,97128.0,97127.0,0.18491125]
[1734832530714,0.0030857,97128.0,97127.0,0.18491125]
[1734832531241,0.0020857,97128.0,97127.0,0.18491125]
[1734832531443,0.0020857,97128.0,97127.0,0.18591125]
[1734832532127,8.57e-05,97128.0,97127.0,0.18591125]
[1734832532302,8.57e-05,97128.0,97127.0,0.18691125]
[1734832534916,8.57e-05,97128.0,97127.0,0.18794072]
[1734832535628,8.57e-05,97128.0,97127.0,0.18694072]
[1734832536132,8.57e-05,97128.0,97127.0,0.18894072]
[1734832536684,8.57e-05,97128.0,97127.0,0.18794072]
[1734832537064,8.57e-05,97128.0,97127.0,0.18894072]
[1734832537267,8.57e-05,97128.0,97127.0,0.29024912]
[1734832537469,8.57e-05,97128.0,97127.0,0.28921965]
[1734832539827,8.57e-05,97128.0,97127.0,0.28621965]
[1734832539983,8.57e-05,97128.0,97127.0,0.28721965]
[1734832540183,8.57e-05,97128.0,97127.0,0.28921965]
[1734832540966,8.57e-05,97128.0,97127.0,0.58771965]
[1734832541317,8.57e-05,97128.0,97127.0,0.68771965]
[1734832541960,8.57e-05,97128.0,97127.0,0.68571965]
[1734832542163,0.0010857,97128.0,97127.0,1.24091965]
[1734832542365,8.57e-05,97128.0,97127.0,1.23191965]
[1734832542746,0.0010857,97128.0,97127.0,1.23991965]
[1734832543159,0.0010857,97128.0,97127.0,1.24491965]
[1734832543563,0.0010857,97128.0,97127.0,1.23991965]
[1734832543982,0.0010857,97128.0,97127.0,1.24491965]
[1734832544349,0.0010857,97128.0,97127.0,1.23991965]
[1734832544551,0.0010857,97128.0,97127.0,1.24391965]
[1734832544769,0.0010857,97128.0,97127.0,1.23491965]
[1734832544946,8.57e-05,97128.0,97127.0,1.23491965]
[1734832545300,0.0010857,97128.0,97127.0,1.24391965]
[1734832545504,0.0010857,97128.0,97127.0,1.23491965]
[1734832545706,0.0020857,97128.0,97127.0,1.24391965]
[1734832547981,8.56e-05,97143.0,97127.0,1.24391965]
[1734832547982,8.56e-05,97143.0,97142.0,0.49469525]
[1734832548127,8.56e-05,97143.0,97142.0,0.64520365]
[1734832548516,8.56e-05,97143.0,97142.0,0.79520365]
[1734832548718,8.56e-05,97143.0,97142.0,0.89520365]
[1734832549184,0.00014161,97143.0,97142.0,0.89720365]
[1734832549333,0.00014161,97143.0,97142.0,0.90220365]
[1734832551320,0.00014161,97143.0,97142.0,1.44840365]
[1734832553582,0.00014161,97143.0,97142.0,1.45882089]
[1734832554082,0.00014161,97143.0,97142.0,1.47965248]
[1734832554881,0.00014161,97143.0,97142.0,1.48365248]
[1734832555080,0.00014161,97143.0,97142.0,1.47865248]
[1734832555581,0.00014161,97143.0,97142.0,1.47465248]
[1734832556105,0.00014161,97143.0,97142.0,1.57865248]
[1734832556302,0.00014161,97143.0,97142.0,1.58765248]
[1734832556508,0.00014161,97143.0,97142.0,1.57865248]
[1734832556875,0.00014161,97143.0,97142.0,1.58765248]
[1734832558243,0.00014161,97143.0,97142.0,1.9272653]
[1734832558765,8.56e-05,97159.0,97158.0,0.56376125]
[1734832558922,8.56e-05,97159.0,97158.0,0.66506965]
[1734832559727,8.56e-05,97159.0,97158.0,0.66606965]
[1734832559977,8.56e-05,97159.0,97158.0,0.67006965]
[1734832561780,8.56e-05,97159.0,97158.0,0.2563084]
[1734832561926,8.56e-05,97159.0,97158.0,0.18991125]
[1734832562125,8.56e-05,97159.0,97158.0,0.19094036]
[1734832562649,8.56e-05,97159.0,97158.0,0.18891125]
[1734832562859,0.2059346,97159.0,97158.0,0.08691125]
[1734832563066,0.2059346,97159.0,97158.0,0.09091125]
[1734832563236,0.2864346,97159.0,97158.0,0.006]
[1734832563440,0.29882973,97159.0,97158.0,0.006]
[1734832564028,0.29882973,97159.0,97158.0,0.004]
[1734832564449,0.29882973,97159.0,97158.0,0.006]
[1734832564674,0.29882973,97159.0,97158.0,0.002]
[1734832564868,0.29882973,97159.0,97158.0,0.004]
[1734832565102,0.29882973,97159.0,97148.0,0.08491125]
[1734832565411,0.205869,97149.0,97148.0,0.08491125]
[1734832566067,0.205869,97149.0,97147.0,0.08491125]
[1734832566279,0.205869,97149.0,97148.0,0.08491125]
[1734832566697,0.205869,97149.0,97148.0,0.08791125]
[1734832567780,0.205869,97149.0,97148.0,0.08491125]
[1734832567988,0.205869,97149.0,97148.0,0.08891125]
[1734832568338,0.205869,97149.0,97148.0,0.08591125]
[1734832568596,0.205869,97149.0,97148.0,0.08491125]
[1734832569344,0.286369,97149.0,97148.0,0.08491125]
[1734832569551,0.0494,97140.0,97139.0,0.08491125]
[1734832570187,0.1299,97140.0,97139.0,0.08491125]
[1734832570403,0.20589,97139.0,97136.0,0.08491125]
[1734832570607,0.20589,97139.0,97138.0,0.08491125]
[1734832571650,0.205879,97145.0,97140.0,0.08491125]
[1734832572081,0.411758,97145.0,97140.0,0.08491125]
[1734832573636,0.00077391,97144.0,97140.0,0.08491125]
[1734832573842,0.205882,97143.0,97140.0,0.08491125]
[1734832574168,0.205886,97141.0,97140.0,0.08491125]
[1734832575310,0.205886,97141.0,97138.0,0.08491125]
[1734832575511,0.205886,97141.0,97140.0,0.08691125]
[1734832575869,0.205886,97141.0,97140.0,0.002]
[1734832576284,0.205892,97139.0,97135.0,0.08491125]
[1734832576484,0.205894,97137.0,97135.0,0.08491125]
[1734832577050,0.205894,97137.0,97135.0,0.18491125]
[1734832578198,0.205894,97137.0,97135.0,0.19091125]
[1734832578401,0.205892,97139.0,97138.0,0.08491125]
[1734832580148,0.205886,97142.0,97138.0,0.08491125]
[1734832580548,0.205886,97142.0,97138.0,0.08591125]
[1734832580957,0.205886,97142.0,97138.0,0.08791125]
[1734832580958,0.411772,97142.0,97138.0,0.08791125]
[1734832581156,0.205888,97140.0,97138.0,0.08491125]
[1734832581360,0.205888,97140.0,97139.0,0.08491125]
[1734832582491,0.205888,97140.0,97139.0,0.08791125]
[1734832583834,0.205888,97140.0,97139.0,0.004]
[1734832584216,0.281288,97140.0,97139.0,0.004]
[1734832584425,0.3825964,97140.0,97139.0,0.004]
[1734832584627,0.4308964,97140.0,97139.0,0.004]
[1734832585529,0.4308964,97140.0,97139.0,0.003]
[1734832585755,0.44283473,97140.0,97139.0,0.003]
[1734832585927,0.44283473,97140.0,97135.0,0.0001714]
[1734832585928,0.205892,97139.0,97135.0,0.0001714]
[1734832586146,0.205894,97137.0,97135.0,0.0001714]
[1734832586307,0.17748231,97136.0,97135.0,0.0001714]
[1734832587332,0.18048231,97136.0,97135.0,0.0001714]
[1734832587554,0.33048231,97136.0,97135.0,0.0001714]
[1734832587748,0.3367084,97136.0,97135.0,0.0011714]
[1734832590959,0.3850084,97136.0,97135.0,0.0011714]
[1734832592587,0.3850084,97136.0,97132.0,4.1e-07]
[1734832592588,0.09208875,97133.0,97132.0,4.1e-07]
[1734832592835,0.24037106,97133.0,97132.0,4.1e-07]
[1734832593031,0.38959715,97133.0,97132.0,4.1e-07]
[1734832593798,0.39559715,97133.0,97132.0,0.00100041]
[1734832594194,0.40259715,97133.0,97132.0,4.1e-07]
[1734832594365,0.39659715,97133.0,97132.0,4.1e-07]
[1734832594712,0.40259715,97133.0,97132.0,0.00100041]
[1734832595907,0.40259715,97133.0,97132.0,4.1e-07]
[1734832605089,0.40259715,97133.0,97132.0,0.00017181]
[1734832607292,0.1913084,97133.0,97132.0,0.00017181]
[1734832607502,0.1073084,97133.0,97132.0,0.00017181]
[1734832607710,0.11708231,97133.0,97132.0,0.00117181]
[1734832607914,0.10808231,97133.0,97132.0,0.00017181]
[1734832608112,0.10208231,97133.0,97132.0,0.0001714]
[1734832608320,0.11108231,97133.0,97132.0,0.0021714]
[1734832608538,0.11708231,97133.0,97132.0,0.0021714]
[1734832608745,0.015,97133.0,97132.0,0.0021714]
[1734832608950,0.00977391,97133.0,97132.0,0.0011714]
[1734832609149,0.01377391,97133.0,97132.0,0.0011714]
[1734832609495,0.00077391,97133.0,97132.0,0.0001714]
[1734832609928,0.012,97133.0,97132.0,0.0011714]
[1734832610164,0.01277391,97133.0,97132.0,0.0001714]
[1734832610367,0.01877391,97133.0,97132.0,0.0011714]
[1734832610827,0.018,97133.0,97132.0,0.0011714]
[1734832611035,0.015,97133.0,97132.0,0.0011714]
[1734832611658,0.018,97133.0,97132.0,0.0011714]
[1734832612183,0.015,97133.0,97132.0,0.0011714]
[1734832612388,0.002,97133.0,97132.0,0.0001714]
[1734832612786,0.007,97133.0,97132.0,0.0001714]
[1734832615040,0.007,97133.0,97132.0,0.18508265]
[1734832615497,0.002,97133.0,97132.0,0.18508265]
[1734832615896,0.005,97133.0,97132.0,0.18508265]
[1734832616040,8.57e-05,97136.0,97132.0,0.18508265]
[1734832616438,0.002,97133.0,97132.0,0.18608265]
[1734832617313,0.002,97133.0,97132.0,0.08608265]
[1734832617733,0.205901,97134.0,97132.0,0.08608265]
[1734832617935,0.205901,97134.0,97132.0,0.18608265]
[1734832618497,8.57e-05,97133.0,97132.0,0.18508265]
[1734832619127,8.57e-05,97133.0,97132.0,0.08508265]
[1734832619320,8.57e-05,97133.0,97132.0,0.18508265]
[1734832619527,8.57e-05,97133.0,97132.0,0.08508265]
[1734832620143,0.0010857,97133.0,97132.0,0.08508265]
[1734832620343,0.0010857,97133.0,97132.0,0.18508265]
[1734832620712,0.0010857,97133.0,97132.0,0.08508265]
[1734832621020,0.0020857,97133.0,97132.0,0.18508265]
[1734832621224,0.00285961,97133.0,97132.0,0.0001714]
[1734832621450,0.10416801,97133.0,97132.0,0.0001714]
[1734832622048,0.10316801,97133.0,97132.0,0.0001714]
[1734832622655,0.10416801,97133.0,97132.0,0.0001714]
[1734832625563,0.12497167,97133.0,97132.0,0.0001714]
[1734832637576,0.0020857,97133.0,97132.0,0.0001714]
[1734832638354,0.00285961,97133.0,97132.0,0.0001714]
[1734832639563,0.0020857,97133.0,97132.0,0.0001714]
[1734832640906,0.0020857,97133.0,97132.0,0.08508265]
[1734832641304,0.0020857,97133.0,97132.0,0.18508265]
[1734832641513,0.0010857,97133.0,97132.0,0.18508265]
[1734832641755,0.0020857,97133.0,97132.0,0.18508265]
[1734832641958,0.0010857,97133.0,97132.0,0.31591212]
[1734832642194,0.0010857,97133.0,97132.0,0.31488265]
[1734832642325,0.0020857,97133.0,97132.0,0.41619105]
[1734832642598,0.0010857,97133.0,97132.0,0.41619105]
[1734832642825,8.57e-05,97133.0,97132.0,0.41619105]
[1734832643031,0.0010857,97133.0,97132.0,0.41619105]
[1734832643432,8.57e-05,97133.0,97132.0,0.41619105]
[1734832644920,8.57e-05,97133.0,97132.0,0.56719105]
[1734832645090,8.57e-05,97133.0,97132.0,0.56619105]
[1734832645504,8.57e-05,97133.0,97132.0,0.56819105]
[1734832645930,0.0010857,97133.0,97132.0,0.57519105]
[1734832646174,8.57e-05,97133.0,97132.0,0.56619105]
[1734832646417,8.57e-05,97133.0,97132.0,0.58019105]
[1734832646603,0.0010857,97133.0,97132.0,0.57519105]
[1734832646758,8.57e-05,97133.0,97132.0,0.68919105]
[1734832646963,8.57e-05,97136.0,97135.0,0.35791125]
[1734832647299,8.57e-05,97136.0,97135.0,1.13391965]
[1734832647937,8.57e-05,97136.0,97135.0,1.23391965]
[1734832649314,0.0010857,97136.0,97135.0,1.24691965]
[1734832653111,0.0010857,97136.0,97135.0,0.69281125]
[1734832653235,0.0010857,97136.0,97135.0,0.64411125]
[1734832653446,0.0010857,97136.0,97135.0,0.19791125]
[1734832653641,0.0010857,97136.0,97135.0,0.1989406]
[1734832653842,0.0010857,97136.0,97135.0,0.0989406]
[1734832654058,0.0010857,97136.0,97135.0,0.09791125]
[1734832654435,8.57e-05,97136.0,97135.0,0.08891125]
[1734832654637,8.57e-05,97136.0,97135.0,0.08491125]
[1734832655001,0.0010857,97136.0,97135.0,0.09791125]
[1734832655219,8.57e-05,97136.0,97135.0,0.08891125]
[1734832655432,8.57e-05,97136.0,97135.0,0.09191125]
[1734832655639,8.57e-05,97136.0,97135.0,0.08791125]
[1734832655809,8.57e-05,97136.0,97135.0,0.08591125]
[1734832656131,8.57e-05,97136.0,97135.0,0.08891125]
[1734832656334,8.57e-05,97136.0,97135.0,0.08791125]
[1734832656543,8.57e-05,97136.0,97135.0,0.08891125]
[1734832657323,8.57e-05,97136.0,97135.0,0.004]
[1734832657500,8.57e-05,97136.0,97135.0,0.001]
[1734832657713,0.205899,97135.0,97132.0,0.0001714]
[1734832657913,0.00077391,97134.0,97132.0,0.0001714]
[1734832658128,0.205903,97133.0,97132.0,0.0001714]
[1734832659335,0.206903,97133.0,97132.0,0.0001714]
[1734832659730,0.207903,97133.0,97132.0,0.0001714]
[1734832662020,0.207903,97133.0,97132.0,0.1001714]
[1734832662421,0.207903,97133.0,97132.0,0.0001714]
[1734832662833,0.207903,97133.0,97132.0,0.1001714]
[1734832664286,0.207903,97133.0,97132.0,0.0001714]
[1734832664491,0.283203,97133.0,97132.0,0.0001714]
[1734832669743,0.207903,97133.0,97132.0,0.0001714]
[1734832670376,0.3092114,97133.0,97132.0,0.0001714]
[1734832672843,0.3844114,97133.0,97132.0,0.0001714]
[1734832673622,0.3824114,97133.0,97132.0,0.0001714]
[1734832673827,0.3904114,97133.0,97132.0,0.0011714]
[1734832674048,0.3944114,97133.0,97132.0,0.0011714]
[1734832675907,0.3904114,97133.0,97132.0,0.0011714]
[1734832676153,0.3944114,97133.0,97132.0,0.0011714]
[1734832676359,0.3944971,97133.0,97132.0,0.0011714]
[1734832676934,0.3944971,97133.0,97132.0,0.0001714]
[1734832677165,0.3864971,97133.0,97132.0,0.0001714]
[1734832677397,0.3944971,97133.0,97132.0,0.0011714]
[1734832679141,0.41557305,97133.0,97132.0,0.0011714]
[1734832680407,0.3944971,97133.0,97132.0,0.0011714]
[1734832684675,0.5181971,97133.0,97127.0,0.0001714]
[1734832684881,0.15,97125.0,97119.0,0.0001714]
[1734832685084,0.35593,97120.0,97119.0,0.0001714]
[1734832685292,0.5324384,97120.0,97119.0,0.0001714]
[1734832685495,0.59642715,97120.0,97119.0,0.0001714]
[1734832686548,0.59942715,97120.0,97119.0,0.0001714]
[1734832687423,0.63155569,97120.0,97119.0,0.0001714]
[1734832688221,0.63755569,97120.0,97119.0,0.0001714]
[1734832689580,0.16508875,97119.0,97108.0,0.0001714]
[1734832689778,0.205954,97109.0,97108.0,0.0001714]
[1734832689995,0.3072624,97109.0,97108.0,0.0001714]
[1734832692314,0.3082624,97109.0,97108.0,0.0001714]
[1734832692827,0.3152624,97109.0,97108.0,0.0001714]
[1734832693276,0.3192624,97109.0,97108.0,0.0001714]
[1734832693607,0.33018881,97109.0,97108.0,0.0001714]
[1734832694089,0.32218881,97109.0,97108.0,0.0001714]
[1734832694427,0.33118881,97109.0,97108.0,0.0001714]
[1734832695458,0.214954,97109.0,97108.0,0.0001714]
[1734832695663,0.208954,97109.0,97108.0,0.0001714]
[1734832695864,0.215954,97109.0,97108.0,0.08508265]
[1734832697273,0.212954,97109.0,97108.0,0.08508265]
[1734832697676,0.208954,97109.0,97108.0,0.08508265]
[1734832698090,0.212954,97109.0,97108.0,0.08508265]
[1734832698315,0.3072624,97109.0,97108.0,0.0001714]
[1734832698512,0.3082624,97109.0,97108.0,0.0001714]
[1734832698698,0.3102624,97109.0,97108.0,0.0001714]
[1734832699045,0.3092624,97109.0,97108.0,0.0001714]
[1734832699524,0.3102624,97109.0,97108.0,0.0001714]
[1734832699742,0.3172624,97109.0,97108.0,0.0011714]
[1734832700494,0.3142624,97109.0,97108.0,0.0011714]
[1734832701037,0.3172624,97109.0,97108.0,0.0011714]
[1734832701616,0.3232624,97109.0,97108.0,0.0011714]
[1734832705972,0.3232624,97109.0,97095.0,0.1]
[1734832705973,0.205981,97096.0,97095.0,0.0961714]
[1734832706373,0.411962,97096.0,97095.0,0.0961714]
[1734832707160,0.41201637,97096.0,97095.0,0.0961714]
[1734832708440,0.41501637,97096.0,97095.0,0.0961714]
[1734832711416,0.41501637,97096.0,97095.0,0.0963428]
[1734832712828,0.41401637,97096.0,97095.0,0.0963428]
[1734832713063,0.41501637,97096.0,97095.0,0.0963428]
[1734832713900,0.41301637,97096.0,97095.0,0.0963428]
[1734832714105,0.41501637,97096.0,97095.0,0.0963428]
[1734832714308,0.41401637,97096.0,97095.0,0.0963428]
[1734832714502,0.41201637,97096.0,97095.0,0.0963428]
[1734832714713,0.41501637,97096.0,97095.0,0.0001714]
[1734832715048,0.41301637,97096.0,97095.0,0.0963428]
[1734832715440,0.41501637,97096.0,97095.0,0.0963428]
[1734832715638,0.41301637,97096.0,97095.0,0.0963428]
[1734832715897,0.41201637,97096.0,97095.0,0.0963428]
[1734832716279,0.41301637,97096.0,97095.0,0.0963428]
[1734832716703,0.20603537,97096.0,97095.0,0.18125405]
[1734832716888,5.437e-05,97096.0,97095.0,0.18125405]
[1734832717096,0.00105437,97096.0,97095.0,0.18125405]
[1734832717270,0.00105437,97096.0,97095.0,0.31138382]
[1734832717460,5.437e-05,97096.0,97095.0,0.31035405]
[1734832717665,0.00305437,97096.0,97095.0,0.31035405]
[1734832718103,0.00105437,97096.0,97095.0,0.31035405]
[1734832718308,0.00105437,97096.0,97095.0,0.31135405]
[1734832718699,0.00105437,97096.0,97095.0,0.31035405]
[1734832718894,5.437e-05,97096.0,97095.0,0.31235405]
[1734832719994,5.437e-05,97096.0,97095.0,0.41466245]
[1734832720199,5.437e-05,97096.0,97095.0,0.56466245]
[1734832720832,5.437e-05,97096.0,97095.0,0.41466245]
[1734832721033,5.437e-05,97096.0,97095.0,0.31335405]
[1734832721242,5.437e-05,97096.0,97095.0,0.08608265]
[1734832721441,5.437e-05,97096.0,97095.0,0.18225405]
[1734832721596,0.00105437,97096.0,97095.0,0.18625405]
[1734832721773,5.437e-05,97096.0,97095.0,0.18125405]
[1734832722179,0.00105437,97096.0,97095.0,0.18725405]
[1734832722578,0.00105437,97096.0,97095.0,0.18525405]
[1734832722979,0.00105437,97096.0,97095.0,0.18625405]
[1734832723545,5.437e-05,97096.0,97095.0,0.18125405]
[1734832723749,5.437e-05,97096.0,97095.0,0.18225405]
[1734832723953,0.00014007,97096.0,97095.0,0.18225405]
[1734832724104,0.00014007,97096.0,97095.0,0.18125405]
[1734832724329,0.00014007,97096.0,97095.0,0.18225405]
[1734832725098,0.00014007,97096.0,97095.0,0.18125405]
[1734832726664,0.00014007,97096.0,97095.0,0.18225405]
[1734832727224,0.00014007,97096.0,97095.0,0.18425405]
[1734832729246,0.00014007,97096.0,97095.0,0.18325405]
[1734832729470,0.00014007,97096.0,97095.0,0.18425405]
[1734832730030,0.00014007,97096.0,97095.0,0.18528389]
[1734832730443,0.00014007,97096.0,97095.0,0.18328389]
[1734832730961,0.00014007,97096.0,97095.0,0.18228389]
[1734832731167,0.00014007,97096.0,97095.0,0.18328389]
[1734832731610,0.00014007,97096.0,97095.0,0.18528389]
[1734832732713,0.00014007,97096.0,97095.0,0.18528377]
[1734832732957,0.00014007,97096.0,97095.0,0.28659217]
[1734832733206,0.00014007,97096.0,97095.0,0.28556245]
[1734832733621,0.00014007,97096.0,97095.0,0.63833359]
[1734832739670,0.00014007,97096.0,97095.0,0.43534955]
[1734832741699,0.00014007,97096.0,97095.0,0.42439287]
[1734832741908,0.00014007,97096.0,97095.0,0.18425405]
[1734832742079,0.00014007,97096.0,97095.0,0.18528382]
[1734832743099,0.00014007,97096.0,97095.0,0.18425405]
[1734832743482,0.07984007,97096.0,97095.0,0.0031714]
[1734832745828,0.07984007,97096.0,97095.0,0.0011714]
[1734832746032,0.07984007,97096.0,97095.0,0.0001714]
[1734832746279,0.08084007,97096.0,97095.0,0.0001714]
[1734832746684,0.00114007,97096.0,97095.0,0.0001714]
[1734832747946,0.00014007,97096.0,97095.0,0.0001714]
[1734832748166,0.00114007,97096.0,97095.0,0.0001714]
[1734832750902,0.00014007,97096.0,97095.0,0.0001714]
[1734832751301,0.00114007,97096.0,97095.0,0.0001714]
[1734832751506,0.00014007,97096.0,97095.0,0.0001714]
[1734832751804,0.00114007,97096.0,97095.0,0.0001714]
[1734832752593,0.08091398,97096.0,97095.0,0.0001714]
[1734832752807,0.22852238,97096.0,97095.0,0.0001714]
[1734832753171,0.22774847,97096.0,97095.0,0.0001714]
[1734832755105,0.2480145,97096.0,97095.0,0.0001714]
[1734832755989,0.22774847,97096.0,97095.0,0.0001714]
[1734832756194,0.00114007,97096.0,97095.0,0.0001714]
[1734832756375,0.00191398,97096.0,97095.0,0.0001714]
[1734832758436,0.08091398,97096.0,97095.0,0.0001714]
[1734832767957,0.00191398,97096.0,97095.0,0.0001714]
[1734832793337,0.10322238,97096.0,97095.0,0.0001714]
[1734832793671,0.18472238,97096.0,97095.0,0.0001714]
[1734832795262,0.51286454,97096.0,97095.0,0.0001714]
[1734832795461,0.51209063,97096.0,97095.0,0.0001714]
[1734832800787,0.66209063,97096.0,97095.0,0.0001714]
[1734832801161,0.68128721,97096.0,97095.0,0.0001714]
[1734832801666,0.68028721,97096.0,97095.0,0.0001714]
[1734832801863,0.72758721,97096.0,97095.0,0.0011714]
[1734832802062,0.73458721,97096.0,97095.0,0.0011714]
[1734832802264,0.40144505,97096.0,97095.0,0.0001714]
[1734832802466,0.40144505,97096.0,97095.0,0.0011714]
[1734832802467,0.53969337,97096.0,97095.0,0.0011714]
[1734832802665,0.54469337,97096.0,97095.0,0.0011714]
[1734832803477,0.6339853,97096.0,97095.0,0.0011714]
[1734832803945,0.6359853,97096.0,97095.0,0.0011714]
[1734832804153,0.5886853,97096.0,97095.0,0.0011714]
[1734832804724,0.87130984,97096.0,97095.0,0.0011714]
[1734832805162,0.53850144,97096.0,97095.0,0.0011714]
[1734832806042,0.02633665,97096.0,97095.0,0.0011714]
[1734832806643,0.00714007,97096.0,97095.0,0.0011714]
[1734832807527,0.02633345,97096.0,97095.0,0.0011714]
[1734832808498,0.00714007,97096.0,97095.0,0.0011714]
[1734832808857,0.00714007,97096.0,97095.0,0.0830714]
[1734832809802,0.00514007,97096.0,97095.0,0.0830714]
[1734832810214,0.00714007,97096.0,97095.0,0.0830714]
[1734832810843,0.00714007,97096.0,97095.0,0.21708265]
[1734832811048,0.00014007,97096.0,97095.0,0.21608265]
[1734832811406,0.00514007,97096.0,97095.0,0.21608265]
[1734832811609,0.00214007,97096.0,97095.0,0.21608265]
[1734832811994,0.00314007,97096.0,97095.0,0.21608265]
[1734832812601,0.00114007,97096.0,97095.0,0.21608265]
[1734832813933,0.00014007,97096.0,97095.0,0.21608265]
[1734832814148,0.00014007,97096.0,97095.0,0.21708265]
[1734832814345,0.00014007,97096.0,97095.0,0.21908265]
[1734832815008,0.00014007,97096.0,97095.0,0.21708265]
[1734832815212,0.00014007,97096.0,97095.0,0.22008265]
[1734832815433,0.00014007,97096.0,97095.0,0.21708265]
[1734832815769,0.00014007,97096.0,97095.0,0.21808265]
[1734832816302,0.00014007,97096.0,97095.0,0.21908265]
[1734832816714,0.00014007,97096.0,97095.0,0.21808265]
[1734832816895,0.00014007,97096.0,97095.0,0.41656245]
[1734832817297,0.00014007,97096.0,97095.0,0.41556245]
[1734832817457,0.00014007,97096.0,97095.0,0.41356245]
[1734832817659,0.00014007,97096.0,97095.0,0.31425405]
[1734832817874,0.00014007,97096.0,97095.0,0.31825405]
[1734832818078,0.00014007,97096.0,97095.0,0.0021714]
[1734832818474,0.00114007,97096.0,97095.0,0.0071714]
[1734832818677,0.00114007,97096.0,97095.0,0.0021714]
[1734832818678,0.00014007,97096.0,97095.0,0.0021714]
[1734832818920,0.2004062,97096.0,97095.0,0.0011714]
[1734832819283,0.35118011,97096.0,97095.0,0.0011714]
[1734832819595,0.3504062,97096.0,97095.0,0.0011714]
[1734832819891,0.3504062,97096.0,97095.0,0.0001714]
[1734832820778,0.3524062,97096.0,97095.0,0.0001714]
[1734832821158,0.3574062,97096.0,97095.0,0.0011714]
[1734832822220,0.1762978,97096.0,97095.0,0.0011714]
[1734832822351,0.0262978,97096.0,97095.0,0.0011714]
[1734832822984,0.00714007,97096.0,97095.0,0.0011714]
[1734832823396,0.00714007,97096.0,97095.0,0.08608265]
[1734832826334,0.00714007,97096.0,97095.0,0.0011714]
[1734832826687,0.00714007,97096.0,97095.0,0.08608265]
[1734832827109,0.00714007,97096.0,97095.0,0.0011714]
[1734832827646,0.02707171,97096.0,97095.0,0.0011714]
[1734832828272,0.12838011,97096.0,97095.0,0.0011714]
[1734832828468,0.13879497,97096.0,97095.0,0.0011714]
[1734832828675,0.28879497,97096.0,97095.0,0.0011714]
[1734832828899,0.28802106,97096.0,97095.0,0.0011714]
[1734832831136,0.30859624,97096.0,97095.0,0.0011714]
[1734832832963,0.30359624,97096.0,97095.0,0.0001714]
[1734832833168,0.31259624,97096.0,97095.0,0.0001714]
[1734832833863,0.31059624,97096.0,97095.0,0.0001714]
[1734832834067,0.30159624,97096.0,97095.0,0.0001714]
[1734832834272,0.30559624,97096.0,97095.0,0.0001714]
[1734832834445,0.31459624,97096.0,97095.0,0.0001714]
[1734832834641,0.30159624,97096.0,97095.0,0.0001714]
[1734832834985,0.30559624,97096.0,97095.0,0.0001714]
[1734832835550,0.30159624,97096.0,97095.0,0.0001714]
[1734832836002,0.31459624,97096.0,97095.0,0.0001714]
[1734832836371,0.30559624,97096.0,97095.0,0.0001714]
[1734832836646,0.31459624,97096.0,97095.0,0.0001714]
[1734832838157,0.31412248,97096.0,97095.0,0.0001714]
[1734832839910,0.293633,97096.0,97095.0,0.0001714]
[1734832840669,0.0383246,97096.0,97095.0,0.0001714]
[1734832840869,0.01890974,97096.0,97095.0,0.0001714]
[1734832841074,0.02290974,97096.0,97095.0,0.0001714]
[1734832841281,0.03190974,97096.0,97095.0,0.0001714]
[1734832841485,0.0130857,97096.0,97095.0,0.0001714]
[1734832841888,0.0090857,97096.0,97095.0,0.0001714]
[1734832842263,8.57e-05,97096.0,97095.0,0.0001714]
[1734832842666,0.0070857,97096.0,97095.0,0.0001714]
[1734832843182,0.0100857,97096.0,97095.0,0.0001714]
[1734832850414,0.02926013,97096.0,97095.0,0.0001714]
[1734832852766,0.0100857,97096.0,97095.0,0.0001714]
[1734832853394,0.02926127,97096.0,97095.0,0.0001714]
[1734832854032,0.52926127,97096.0,97095.0,0.0001714]
[1734832856831,0.52926127,97096.0,97095.0,0.16118265]
[1734832856832,0.5100857,97096.0,97095.0,0.16118265]